fUSD/lending_fUSD_20240612
["ID","MTS","AMOUNT","RATE_DAILY","PERIOD"]
[329175312,1718152262585,-565.33,0.00022054,2]
[329175313,1718152262596,-500.0,0.00022054,2]
[329175314,1718152262607,-984.93,0.00022054,2]
[329175315,1718152262619,-500.0,0.00022054,2]
[329175316,1718152262632,-1994.75,0.00022054,2]
[329175317,1718152262644,-1645.17,0.00022054,2]
[329175318,1718152262657,-500.0,0.00022054,2]
[329175319,1718152262668,-500.0,0.00022054,2]
[329175320,1718152262681,-500.0,0.00022054,2]
[329175321,1718152262694,-771.29,0.00022054,2]
[329175322,1718152262711,-500.0,0.00022054,2]
[329175323,1718152262729,-590.08,0.00022054,2]
[329175324,1718152262743,-1133.5,0.00022054,2]
[329175325,1718152262755,-500.0,0.00022054,2]
[329175326,1718152262768,-968.94,0.00022054,2]
[329175327,1718152262783,-500.0,0.00022054,2]
[329175328,1718152262798,-500.0,0.00022054,2]
[329175329,1718152262813,-500.0,0.00022054,2]
[329175330,1718152262828,-500.0,0.00022054,2]
[329175331,1718152262843,-500.0,0.00022054,2]
[329175332,1718152262857,-1789.81,0.00022054,2]
[329175333,1718152262870,-1439.21,0.00022054,2]
[329175334,1718152262885,-500.0,0.00022054,2]
[329175335,1718152262906,-500.0,0.00022054,2]
[329175336,1718152262926,-500.0,0.00022054,2]
[329175337,1718152262939,-500.0,0.00022054,2]
[329175338,1718152262954,-529.89,0.00022054,2]
[329175339,1718152262971,-500.0,0.00022054,2]
[329175340,1718152262985,-1448.71,0.00022054,2]
[329175341,1718152263000,-1812.13,0.00022054,2]
[329175342,1718152263014,-500.0,0.00022054,2]
[329175343,1718152263027,-500.0,0.00022054,2]
[329175344,1718152263041,-514.1,0.00022054,2]
[329175345,1718152263055,-500.0,0.00022054,2]
[329175346,1718152263068,-500.0,0.00022054,2]
[329175347,1718152263082,-534.56,0.00022054,2]
[329175348,1718152263098,-500.0,0.00022054,2]
[329175349,1718152263114,-766.83,0.00022054,2]
[329175350,1718152263132,-1485.3,0.00022054,2]
[329175351,1718152263148,-500.0,0.00022054,2]
[329175352,1718152263161,-614.92,0.00022054,2]
[329175353,1718152263174,-500.0,0.00022054,2]
[329175354,1718152263187,-500.0,0.00022054,2]
[329175355,1718152263199,-700.18,0.00022054,2]
[329175356,1718152263213,-633.23,0.00022054,2]
[329175357,1718152263228,-916.34,0.00022054,2]
[329175358,1718152263243,-500.0,0.00022054,2]
[329175359,1718152263256,-500.0,0.00022054,2]
[329175360,1718152263273,-500.0,0.00022054,2]
[329175361,1718152263285,-627.02,0.00022054,2]
[329175362,1718152263297,-372.64286709,0.00022054,2]
[329175363,1718152263311,-500.0,0.00022054,2]
[329175364,1718152263322,-500.0,0.00022054,2]
[329175365,1718152263333,-500.0,0.00022054,2]
[329175366,1718152263345,-500.0,0.00022054,2]
[329175367,1718152263358,-500.0,0.00022054,2]
[329175368,1718152263371,-500.0,0.00022054,2]
[329175369,1718152263385,-604.68,0.00022054,2]
[329175370,1718152263403,-500.0,0.00022054,2]
[329175371,1718152263416,-517.38,0.00022054,2]
[329175372,1718152263428,-903.25,0.00022054,2]
[329175373,1718152263441,-500.0,0.00022054,2]
[329175374,1718152263453,-500.0,0.00022054,2]
[329175375,1718152263465,-1616.45,0.00022054,2]
[329175376,1718152263478,-500.0,0.00022054,2]
[329175377,1718152263490,-500.0,0.00022054,2]
[329175378,1718152263504,-511.55495078,0.00022054,2]
[329175379,1718152263518,-1465.81,0.00022054,2]
[329175380,1718152263533,-500.0,0.00022054,2]
[329175381,1718152263548,-500.0,0.00022054,2]
[329175382,1718152263561,-500.0,0.00022054,2]
[329175383,1718152263574,-1848.49,0.00022054,2]
[329175384,1718152263595,-672.78,0.00022054,2]
[329175385,1718152263610,-742.65,0.00022054,2]
[329175386,1718152263623,-500.0,0.00022054,2]
[329175387,1718152263638,-1031.5,0.00022054,2]
[329175388,1718152263651,-500.0,0.00022054,2]
[329175389,1718152263664,-500.0,0.00022054,2]
[329175390,1718152263676,-500.0,0.00022054,2]
[329175391,1718152263690,-500.0,0.00022054,2]
[329175392,1718152263703,-500.0,0.00022054,2]
[329175393,1718152263716,-945.42,0.00022054,2]
[329175394,1718152263728,-807.6,0.00022054,2]
[329175395,1718152263741,-1377.76,0.00022054,2]
[329175396,1718152263754,-521.83,0.00022054,2]
[329175397,1718152263767,-975.07,0.00022054,2]
[329175398,1718152263780,-504.6,0.00022054,2]
[329175399,1718152263792,-1135.56,0.00022054,2]
[329175400,1718152263805,-500.0,0.00022054,2]
[329175401,1718152263817,-500.0,0.00022054,2]
[329175402,1718152263829,-500.0,0.00022054,2]
[329175403,1718152263841,-500.0,0.00022054,2]
[329175404,1718152263854,-735.45,0.00022054,2]
[329175405,1718152263867,-1889.55,0.00022054,2]
[329175406,1718152263880,-500.0,0.00022054,2]
[329175407,1718152263902,-500.0,0.00022054,2]
[329175408,1718152263916,-2234.48,0.00022054,2]
[329175409,1718152263930,-528.42552106,0.00022054,2]
[329175410,1718152263943,-500.0,0.00022054,2]
[329175411,1718152263956,-669.88,0.00022054,2]
[329175412,1718152263968,-500.0,0.00022054,2]
[329175413,1718152263982,-902.77,0.00022054,2]
[329175414,1718152263995,-523.44166125,0.00022054,2]
[329175415,1718152264007,-1437.12,0.00022054,2]
[329175416,1718152264019,-500.0,0.00022054,2]
[329175417,1718152264032,-872.07,0.00022054,2]
[329175418,1718152264046,-500.0,0.00022054,2]
[329175419,1718152264058,-832.07,0.00022054,2]
[329175420,1718152264071,-595.17,0.00022054,2]
[329175421,1718152264084,-500.0,0.00022054,2]
[329175422,1718152264099,-506.33,0.00022054,2]
[329175423,1718152264111,-678.38,0.00022054,2]
[329175424,1718152264123,-500.0,0.00022054,2]
[329175425,1718152264137,-500.0,0.00022054,2]
[329175426,1718152264149,-500.0,0.00022054,2]
[329175427,1718152264168,-1748.56,0.00022054,2]
[329175428,1718152264180,-500.0,0.00022054,2]
[329175429,1718152264192,-500.0,0.00022054,2]
[329175430,1718152264204,-766.68,0.00022054,2]
[329175431,1718152264217,-777.5,0.00022054,2]
[329175432,1718152264230,-500.0,0.00022054,2]
[329175433,1718152264243,-1361.98,0.00022054,2]
[329175434,1718152264260,-500.0,0.00022054,2]
[329175435,1718152264273,-500.0,0.00022054,2]
[329175436,1718152264286,-500.0,0.00022054,2]
[329175437,1718152264300,-522.21,0.00022054,2]
[329175438,1718152264313,-500.0,0.00022054,2]
[329175439,1718152264327,-2220.69,0.00022054,2]
[329175440,1718152264341,-500.0,0.00022054,2]
[329175441,1718152264355,-975.31,0.00022054,2]
[329175442,1718152264368,-500.0,0.00022054,2]
[329175443,1718152264383,-500.0,0.00022054,2]
[329175444,1718152264408,-864.77,0.00022054,2]
[329175445,1718152264422,-500.0,0.00022054,2]
[329175446,1718152264435,-592.88,0.00022054,2]
[329175447,1718152264449,-500.0,0.00022054,2]
[329175448,1718152264464,-500.0,0.00022054,2]
[329175449,1718152264477,-664.93,0.00022054,2]
[329175450,1718152264490,-1633.51,0.00022054,2]
[329175451,1718152264504,-647.1,0.00022054,2]
[329175452,1718152264518,-500.0,0.00022054,2]
[329175453,1718152264530,-500.0,0.00022054,2]
[329175454,1718152264543,-500.0,0.00022054,2]
[329175455,1718152264557,-758.29,0.00022054,2]
[329175456,1718152264569,-500.0,0.00022054,2]
[329175457,1718152264582,-500.0,0.00022054,2]
[329175458,1718152264597,-500.0,0.00022054,2]
[329175459,1718152264612,-500.0,0.00022054,2]
[329175460,1718152264631,-500.0,0.00022054,2]
[329175461,1718152264645,-1322.83,0.00022054,2]
[329175462,1718152264659,-1150.01,0.00022054,2]
[329175463,1718152264673,-500.0,0.00022054,2]
[329175464,1718152264704,-702.84,0.00022054,2]
[329175465,1718152264719,-500.0,0.00022054,2]
[329175466,1718152264732,-500.0,0.00022054,2]
[329175467,1718152264745,-760.22,0.00022054,2]
[329175468,1718152264758,-500.0,0.00022054,2]
[329175469,1718152264771,-500.0,0.00022054,2]
[329175470,1718152264784,-611.42,0.00022054,2]
[329175471,1718152264798,-500.0,0.00022054,2]
[329175472,1718152264812,-523.6067487,0.00022054,2]
[329175473,1718152264825,-500.0,0.00022054,2]
[329175474,1718152264838,-500.0,0.00022054,2]
[329175475,1718152264850,-386.76,0.00022054,2]
[329175476,1718152264862,-500.0,0.00022054,2]
[329175477,1718152264875,-1302.36,0.00022054,2]
[329175478,1718152264895,-500.0,0.00022054,2]
[329175479,1718152264919,-500.0,0.00022054,2]
[329175480,1718152264931,-770.19,0.00022054,2]
[329175481,1718152264943,-583.36,0.00022054,2]
[329175482,1718152264956,-500.0,0.00022054,2]
[329175483,1718152264970,-500.0,0.00022054,2]
[329175484,1718152264983,-500.0,0.00022054,2]
[329175485,1718152264997,-500.0,0.00022054,2]
[329175486,1718152265010,-384.49772982,0.00022054,2]
[329175487,1718152265022,-1251.7,0.00022054,2]
[329175488,1718152265035,-2724.7,0.00022054,2]
[329175489,1718152265047,-1242.44,0.00022054,2]
[329175490,1718152265060,-500.0,0.00022054,2]
[329175491,1718152265073,-958.23,0.00022054,2]
[329175492,1718152265085,-715.59,0.00022054,2]
[329175493,1718152265100,-500.0,0.00022054,2]
[329175494,1718152265111,-581.19,0.00022054,2]
[329175495,1718152265124,-1285.65,0.00022054,2]
[329175496,1718152265138,-500.0,0.00022054,2]
[329175497,1718152265149,-2185.89,0.00022054,2]
[329175498,1718152265161,-859.34,0.00022054,2]
[329175499,1718152265174,-565.93,0.00022054,2]
[329175500,1718152265187,-637.51,0.00022054,2]
[329175501,1718152265199,-1027.85,0.00022054,2]
[329175502,1718152265212,-500.0,0.00022054,2]
[329175503,1718152265224,-500.0,0.00022054,2]
[329175504,1718152265237,-1828.02,0.00022054,2]
[329175505,1718152265249,-1832.91,0.00022054,2]
[329175506,1718152265261,-500.0,0.00022054,2]
[329175507,1718152265273,-500.0,0.00022054,2]
[329175508,1718152265285,-843.32,0.00022054,2]
[329175509,1718152265297,-526.01823711,0.00022054,2]
[329175510,1718152265310,-879.61,0.00022054,2]
[329175511,1718152265322,-1675.58,0.00022054,2]
[329175512,1718152265334,-500.0,0.00022054,2]
[329175513,1718152265347,-500.0,0.00022054,2]
[329175514,1718152265359,-775.96,0.00022054,2]
[329175515,1718152265371,-546.12,0.00022054,2]
[329175516,1718152265383,-2473.16,0.00022054,2]
[329175517,1718152265396,-500.0,0.00022054,2]
[329175518,1718152265408,-1644.66,0.00022054,2]
[329175519,1718152265420,-608.83,0.00022054,2]
[329175520,1718152265432,-6166.54,0.00022054,2]
[329175521,1718152265445,-500.0,0.00022054,2]
[329175522,1718152265457,-1432.45,0.00022054,2]
[329175523,1718152265469,-11639.91,0.00022054,2]
[329175524,1718152265482,-684.92,0.00022054,2]
[329175525,1718152265494,-500.0,0.00022054,2]
[329175526,1718152265506,-720.68,0.00022054,2]
[329175527,1718152265518,-836.87,0.00022054,2]
[329175528,1718152265529,-500.0,0.00022054,2]
[329175529,1718152265540,-2116.39,0.00022054,2]
[329175530,1718152265552,-2982.93,0.00022054,2]
[329175531,1718152265564,-6038.81,0.00022054,2]
[329175532,1718152265575,-500.0,0.00022054,2]
[329175533,1718152265587,-500.0,0.00022054,2]
[329175534,1718152265599,-500.0,0.00022054,2]
[329175535,1718152265610,-2381.43,0.00022054,2]
[329175536,1718152265622,-544.79,0.00022054,2]
[329175537,1718152265635,-500.0,0.00022054,2]
[329175538,1718152265646,-166.09726611,0.00022054,2]
[329175539,1718152265659,-500.0,0.00022054,2]
[329175540,1718152265671,-3028.7,0.00022054,2]
[329175541,1718152265682,-500.0,0.00022054,2]
[329175542,1718152265694,-1373.33,0.00022054,2]
[329175543,1718152265706,-1677.62,0.00022054,2]
[329175544,1718152265718,-1337.01,0.00022054,2]
[329175545,1718152265730,-714.82,0.00022054,2]
[329175546,1718152265742,-500.0,0.00022054,2]
[329175547,1718152265754,-500.0,0.00022054,2]
[329175548,1718152265766,-673.21,0.00022054,2]
[329175549,1718152265778,-512.83531871,0.00022054,2]
[329175550,1718152265790,-8750.37,0.00022054,2]
[329175551,1718152265802,-799.51,0.00022054,2]
[329175552,1718152265814,-500.0,0.00022054,2]
[329175553,1718152265826,-500.0,0.00022054,2]
[329175554,1718152265838,-5029.8,0.00022054,2]
[329175555,1718152265850,-1374.54,0.00022054,2]
[329175556,1718152265862,-14635.7,0.00022054,2]
[329175557,1718152265874,-500.0,0.00022054,2]
[329175558,1718152265886,-55467.75,0.00022054,2]
[329175559,1718152265906,-500.0,0.00022054,2]
[329175560,1718152265920,-500.0,0.00022054,2]
[329175561,1718152265932,-1639.97,0.00022054,2]
[329175562,1718152265944,-1476.61,0.00022054,2]
[329175563,1718152265957,-500.0,0.00022054,2]
[329175564,1718152265968,-500.0,0.00022054,2]
[329175565,1718152265981,-525.6979199,0.00022054,2]
[329175566,1718152265992,-1694.28,0.00022054,2]
[329175567,1718152266004,-611.49,0.00022054,2]
[329175568,1718152266016,-8487.8,0.00022054,2]
[329175569,1718152266029,-500.0,0.00022054,2]
[329175570,1718152266041,-501.31593222,0.00022054,2]
[329175571,1718152266054,-500.0,0.00022054,2]
[329175572,1718152266066,-500.0,0.00022054,2]
[329175573,1718152266079,-4233.25,0.00022054,2]
[329175574,1718152266092,-31639.75,0.00022054,2]
[329175575,1718152266107,-3757.38,0.00022054,2]
[329175576,1718152266120,-1040.34,0.00022054,2]
[329175577,1718152266133,-500.0,0.00022054,2]
[329175578,1718152266145,-500.0,0.00022054,2]
[329175579,1718152266157,-500.0,0.00022054,2]
[329175580,1718152266170,-609.10630909,0.00022054,2]
[329175581,1718152266183,-500.0,0.00022054,2]
[329175582,1718152266196,-1454.99,0.00022054,2]
[329175583,1718152266209,-859.52,0.00022054,2]
[329175584,1718152266222,-2491.31,0.00022054,2]
[329175585,1718152266237,-2280.28,0.00022054,2]
[329175586,1718152266249,-667.99,0.00022054,2]
[329175587,1718152266261,-500.0,0.00022054,2]
[329175588,1718152266272,-948.31,0.00022054,2]
[329175589,1718152266285,-3248.8,0.00022054,2]
[329175590,1718152266297,-1784.52,0.00022054,2]
[329175591,1718152266308,-2626.46,0.00022054,2]
[329175592,1718152266320,-500.0,0.00022054,2]
[329175593,1718152266332,-1145.88,0.00022054,2]
[329175594,1718152266344,-1004.2,0.00022054,2]
[329175595,1718152266355,-1408.1,0.00022054,2]
[329175596,1718152266368,-2273.45,0.00022054,2]
[329175597,1718152266380,-500.0,0.00022054,2]
[329175598,1718152266392,-509.89306569,0.00022054,2]
[329175599,1718152266404,-1209.21,0.00022054,2]
[329175600,1718152266416,-930.43,0.00022054,2]
[329175601,1718152266428,-788.93,0.00022054,2]
[329175602,1718152266440,-13437.77,0.00022054,2]
[329175603,1718152266453,-1170.24,0.00022054,2]
[329175604,1718152266465,-3818.53,0.00022054,2]
[329175605,1718152266477,-1149.05,0.00022054,2]
[329175606,1718152267046,-500.0,0.00022054,2]
[329175607,1718152267096,-3130.09,0.00022054,2]
[329175608,1718152267117,-500.0,0.00022054,2]
[329175609,1718152267134,-937.79,0.00022054,2]
[329175610,1718152267151,-1310.08,0.00022054,2]
[329175611,1718152267161,-1636.15,0.00022054,2]
[329175612,1718152267170,-4252.32,0.00022054,2]
[329175613,1718152267180,-500.0,0.00022054,2]
[329175614,1718152267189,-2563.57,0.00022054,2]
[329175615,1718152267199,-1159.58,0.00022054,2]
[329175616,1718152267209,-500.0,0.00022054,2]
[329175617,1718152267220,-2992.8,0.00022054,2]
[329175618,1718152267230,-601.01,0.00022054,2]
[329175619,1718152267240,-822.74,0.00022054,2]
[329175620,1718152267251,-15717.99,0.00022054,2]
[329175621,1718152267262,-500.0,0.00022054,2]
[329175622,1718152267272,-2005.55,0.00022054,2]
[329175623,1718152267283,-500.0,0.00022054,2]
[329175624,1718152267292,-6296.83,0.00022054,2]
[329175625,1718152267302,-3223.86,0.00022054,2]
[329175626,1718152267312,-6945.2,0.00022054,2]
[329175627,1718152267323,-693.01,0.00022054,2]
[329175628,1718152267333,-508.33,0.00022054,2]
[329175629,1718152267343,-814.28,0.00022054,2]
[329175630,1718152267353,-500.0,0.00022054,2]
[329175631,1718152267363,-500.0,0.00022054,2]
[329175632,1718152267372,-500.0,0.00022054,2]
[329175633,1718152267382,-488.97752015,0.00022054,2]
[329175634,1718152267394,-500.0,0.00022054,2]
[329175635,1718152267404,-1572.98,0.00022054,2]
[329175636,1718152267414,-6193.09,0.00022054,2]
[329175637,1718152267424,-500.0,0.00022054,2]
[329175638,1718152267435,-500.0,0.00022054,2]
[329175639,1718152267445,-4096.16,0.00022054,2]
[329175640,1718152267456,-4787.7,0.00022054,2]
[329175641,1718152267467,-772.43,0.00022054,2]
[329175642,1718152267477,-1791.65,0.00022054,2]
[329175643,1718152267488,-500.0,0.00022054,2]
[329175644,1718152267498,-7973.12,0.00022054,2]
[329175645,1718152267508,-500.0,0.00022054,2]
[329175646,1718152267519,-500.0,0.00022054,2]
[329175647,1718152267529,-5053.24,0.00022054,2]
[329175648,1718152267539,-5354.26,0.00022054,2]
[329175649,1718152267549,-3948.83,0.00022054,2]
[329175650,1718152267560,-553.84,0.00022054,2]
[329175651,1718152267570,-500.0,0.00022054,2]
[329175652,1718152267581,-709.59,0.00022054,2]
[329175653,1718152267591,-1340.43,0.00022054,2]
[329175654,1718152267602,-2722.79,0.00022054,2]
[329175655,1718152267612,-500.0,0.00022054,2]
[329175656,1718152267622,-3052.41,0.00022054,2]
[329175657,1718152267632,-500.0,0.00022054,2]
[329175658,1718152267644,-500.0,0.00022054,2]
[329175659,1718152267654,-553.91,0.00022054,2]
[329175660,1718152267664,-1947.62,0.00022054,2]
[329175661,1718152267675,-2248.59,0.00022054,2]
[329175662,1718152267686,-1267.75,0.00022054,2]
[329175663,1718152267696,-21764.24,0.00022054,2]
[329175664,1718152267706,-500.0,0.00022054,2]
[329175665,1718152267717,-664.97,0.00022054,2]
[329175666,1718152267727,-3643.8,0.00022054,2]
[329175667,1718152267737,-933.23,0.00022054,2]
[329175668,1718152267747,-993.14,0.00022054,2]
[329175669,1718152267757,-2014.17,0.00022054,2]
[329175670,1718152267769,-3779.59,0.00022054,2]
[329175671,1718152267779,-2124.27,0.00022054,2]
[329175672,1718152267789,-500.0,0.00022054,2]
[329175673,1718152267799,-500.0,0.00022054,2]
[329175674,1718152267809,-1155.31,0.00022054,2]
[329175675,1718152267819,-500.0,0.00022054,2]
[329175676,1718152267829,-2069.74,0.00022054,2]
[329175677,1718152267839,-1829.75,0.00022054,2]
[329175678,1718152267849,-535.12,0.00022054,2]
[329175679,1718152267859,-573.32,0.00022054,2]
[329175680,1718152267870,-966.69,0.00022054,2]
[329175681,1718152267880,-7244.58,0.00022054,2]
[329175682,1718152267893,-501.41,0.00022054,2]
[329175683,1718152267906,-500.0,0.00022054,2]
[329175684,1718152267921,-2887.58,0.00022054,2]
[329175685,1718152267931,-500.0,0.00022054,2]
[329175686,1718152267941,-887.04,0.00022054,2]
[329175687,1718152267951,-798.17,0.00022054,2]
[329175688,1718152267960,-1475.27,0.00022054,2]
[329175689,1718152267970,-500.0,0.00022054,2]
[329175690,1718152267980,-404.60883424,0.00022054,2]
[329175691,1718152267991,-2320.17,0.00022054,2]
[329175692,1718152268001,-5774.73,0.00022054,2]
[329175693,1718152268011,-4440.03,0.00022054,2]
[329175694,1718152268021,-1224.67,0.00022054,2]
[329175695,1718152268031,-500.0,0.00022054,2]
[329175696,1718152268042,-2701.18,0.00022054,2]
[329175697,1718152268053,-500.0,0.00022054,2]
[329175698,1718152268065,-664.9,0.00022054,2]
[329175699,1718152268075,-3233.51,0.00022054,2]
[329175700,1718152268087,-500.0,0.00022054,2]
[329175701,1718152268100,-10039.9,0.00022054,2]
[329175702,1718152268111,-500.0,0.00022054,2]
[329175703,1718152268122,-4631.33,0.00022054,2]
[329175704,1718152268133,-5258.17,0.00022054,2]
[329175705,1718152268146,-1536.62,0.00022054,2]
[329175706,1718152268156,-3703.49,0.00022054,2]
[329175707,1718152268167,-500.0,0.00022054,2]
[329175708,1718152268178,-5740.59,0.00022054,2]
[329175709,1718152268193,-679.79,0.00022054,2]
[329175710,1718152268204,-527.5,0.00022054,2]
[329175711,1718152268215,-500.0,0.00022054,2]
[329175712,1718152268225,-500.0,0.00022054,2]
[329175713,1718152268237,-4174.68,0.00022054,2]
[329175714,1718152268248,-1010.03,0.00022054,2]
[329175715,1718152268258,-1523.49,0.00022054,2]
[329175716,1718152268269,-500.0,0.00022054,2]
[329175717,1718152268279,-826.15,0.00022054,2]
[329175718,1718152268289,-3077.97,0.00022054,2]
[329175719,1718152268299,-500.0,0.00022054,2]
[329175720,1718152268309,-500.0,0.00022054,2]
[329175721,1718152268320,-1737.39,0.00022054,2]
[329175722,1718152268330,-3723.53,0.00022054,2]
[329175723,1718152268340,-1279.11,0.00022054,2]
[329175724,1718152268351,-3873.2,0.00022054,2]
[329175725,1718152268362,-921.67,0.00022054,2]
[329175726,1718152268372,-3554.93,0.00022054,2]
[329175727,1718152268384,-13892.86,0.00022054,2]
[329175728,1718152268394,-1815.54,0.00022054,2]
[329175729,1718152268404,-3828.74,0.00022054,2]
[329175730,1718152268414,-1478.12,0.00022054,2]
[329175731,1718152268424,-2826.64,0.00022054,2]
[329175732,1718152268434,-500.0,0.00022054,2]
[329175733,1718152268445,-1688.75,0.00022054,2]
[329175734,1718152268455,-4162.53,0.00022054,2]
[329175735,1718152268465,-1745.11,0.00022054,2]
[329175736,1718152268475,-1169.97,0.00022054,2]
[329175737,1718152268485,-2660.92,0.00022054,2]
[329175738,1718152268495,-585.03,0.00022054,2]
[329175739,1718152268505,-553.25,0.00022054,2]
[329175740,1718152268515,-1499.27,0.00022054,2]
[329175741,1718152268525,-500.0,0.00022054,2]
[329175742,1718152268535,-3311.26,0.00022054,2]
[329175743,1718152268545,-500.0,0.00022054,2]
[329175744,1718152268555,-500.0,0.00022054,2]
[329175745,1718152268565,-9068.66,0.00022054,2]
[329175746,1718152268576,-5034.1,0.00022054,2]
[329175747,1718152268586,-500.0,0.00022054,2]
[329175748,1718152268596,-1677.98,0.00022054,2]
[329175749,1718152268607,-814.67,0.00022054,2]
[329175750,1718152268617,-1697.49,0.00022054,2]
[329175751,1718152268628,-4308.06,0.00022054,2]
[329175752,1718152268640,-500.0,0.00022054,2]
[329175753,1718152268650,-561.99,0.00022054,2]
[329175754,1718152268660,-2144.81,0.00022054,2]
[329175755,1718152268671,-500.0,0.00022054,2]
[329175756,1718152268681,-1323.25,0.00022054,2]
[329175757,1718152268692,-3056.61,0.00022054,2]
[329175758,1718152268702,-3545.84,0.00022054,2]
[329175759,1718152268712,-1141.61,0.00022054,2]
[329175760,1718152268723,-1853.92,0.00022054,2]
[329175761,1718152268732,-990.08,0.00022054,2]
[329175762,1718152268742,-3158.79,0.00022054,2]
[329175763,1718152268751,-13300.03,0.00022054,2]
[329175764,1718152268761,-4887.15,0.00022054,2]
[329175765,1718152268771,-1422.63,0.00022054,2]
[329175766,1718152268781,-521.15,0.00022054,2]
[329175767,1718152268791,-3636.03,0.00022054,2]
[329175768,1718152268802,-500.0,0.00022054,2]
[329175769,1718152268812,-1437.79,0.00022054,2]
[329175770,1718152268822,-500.0,0.00022054,2]
[329175771,1718152268832,-500.0,0.00022054,2]
[329175772,1718152268842,-1459.51,0.00022054,2]
[329175773,1718152268853,-2751.22,0.00022054,2]
[329175774,1718152268864,-500.0,0.00022054,2]
[329175775,1718152268875,-593.82,0.00022054,2]
[329175776,1718152268886,-1206.33,0.00022054,2]
[329175777,1718152268901,-1998.63,0.00022054,2]
[329175778,1718152268914,-500.0,0.00022054,2]
[329175779,1718152268926,-919.64,0.00022054,2]
[329175780,1718152268935,-938.25,0.00022054,2]
[329175781,1718152268946,-500.0,0.00022054,2]
[329175782,1718152268957,-653.38,0.00022054,2]
[329175783,1718152268967,-500.0,0.00022054,2]
[329175784,1718152268978,-500.0,0.00022054,2]
[329175785,1718152268988,-4598.01,0.00022054,2]
[329175786,1718152268998,-1110.54,0.00022054,2]
[329175787,1718152269008,-2178.93,0.00022054,2]
[329175788,1718152269018,-3919.34,0.00022054,2]
[329175789,1718152269028,-500.0,0.00022054,2]
[329175790,1718152269039,-500.0,0.00022054,2]
[329175791,1718152269051,-2168.86,0.00022054,2]
[329175792,1718152269062,-1758.54,0.00022054,2]
[329175793,1718152269072,-988.74,0.00022054,2]
[329175794,1718152269083,-2592.38,0.00022054,2]
[329175795,1718152269095,-1057.94,0.00022054,2]
[329175796,1718152269107,-1265.05,0.00022054,2]
[329175797,1718152269118,-500.0,0.00022054,2]
[329175798,1718152269129,-2116.3,0.00022054,2]
[329175799,1718152269140,-500.0,0.00022054,2]
[329175800,1718152269151,-1154.0,0.000221,2]
[329175801,1718152269162,-587.826679,0.0002214,2]
[329175802,1718152269172,-2351.306719,0.0002214,2]
[329175803,1718152269183,-150.0,0.0002219,7]
[329175804,1718152269194,-374.92281397,0.00022191,2]
[329175805,1718152269205,-500.0,0.00022191,2]
[329175806,1718152269216,-500.0,0.00022191,2]
[329175807,1718152269226,-500.0,0.00022191,2]
[329175808,1718152269236,-500.0,0.00022191,2]
[329175809,1718152269246,-250.0,0.00022191,2]
[329175810,1718152269256,-500.0,0.00022191,2]
[329175811,1718152269267,-500.0,0.00022191,2]